bitfinex/quotes_BTCUSD_20241124
["timestamp","ask_amount","ask_price","bid_price","bid_amount"]
[1732451989368,0.00108671,96836.0,96835.0,0.52664827]
[1732451989822,0.152951,96864.0,96835.0,0.52664827]
[1732451989823,0.206437,96882.0,96835.0,0.47501427]
[1732451990047,0.103232,96869.0,96855.0,0.051623]
[1732451990269,0.2,96889.0,96856.0,0.10201427]
[1732451990500,0.103213,96887.0,96856.0,0.10201427]
[1732451990759,0.023,96884.0,96856.0,0.10201427]
[1732451990993,0.126239,96862.0,96856.0,0.10201427]
[1732451991486,0.023,96868.0,96856.0,0.10201427]
[1732451991698,0.103231,96870.0,96856.0,0.15363627]
[1732451991916,0.103232,96870.0,96856.0,0.15363627]
[1732451992155,0.103232,96869.0,96856.0,0.10201427]
[1732451992406,0.206419,96890.0,96856.0,0.10201427]
[1732451992636,0.15,96889.0,96856.0,0.10201427]
[1732451992852,0.103232,96869.0,96858.0,0.051621]
[1732451993070,0.103232,96869.0,96859.0,0.10201427]
[1732451993294,0.029436,96878.0,96859.0,0.10201427]
[1732451993524,0.103246,96856.0,96851.0,0.19870967]
[1732451993743,0.023,96855.0,96852.0,0.10201427]
[1732451993978,0.023,96853.0,96840.0,0.19870967]
[1732451994210,0.00077684,96877.0,96841.0,0.09224175]
[1732451994211,0.10326,96842.0,96841.0,0.09224175]
[1732451994697,0.206489,96858.0,96837.0,0.09224175]
[1732451994917,0.206527,96840.0,96835.0,0.023]
[1732451995166,0.103279,96825.0,96824.0,0.34224175]
[1732451995411,0.206551,96829.0,96824.0,0.44425602]
[1732451995664,0.103279,96825.0,96824.0,0.14224175]
[1732451996153,0.023,96853.0,96823.0,0.153]
[1732451996378,0.023,96850.0,96823.0,0.153]
[1732451996601,0.103279,96825.0,96824.0,0.041272]
[1732451997044,0.103279,96825.0,96803.0,0.15]
[1732451997045,0.023,96824.0,96811.0,0.09224175]
[1732451997267,0.023,96824.0,96811.0,0.10201427]
[1732451997726,0.413132,96821.0,96812.0,0.041276]
[1732451997993,0.103289,96816.0,96812.0,0.041276]
[1732451998208,0.206564,96822.0,96813.0,0.153]
[1732451998471,0.0771,96825.0,96812.0,0.041276]
[1732451998683,0.029485,96826.0,96812.0,0.041276]
[1732451999408,0.047,96848.0,96812.0,0.041276]
[1732451999409,0.20653,96838.0,96812.0,0.041276]
[1732451999620,0.103305,96800.0,96785.0,0.09224175]
[1732452000089,0.103305,96800.0,96780.0,0.002]
[1732452000090,0.103305,96800.0,96792.0,0.09224175]
[1732452000307,0.103305,96800.0,96799.0,0.0439982]
[1732452000543,0.103305,96800.0,96799.0,0.0027132]
[1732452000805,0.023,96800.0,96774.0,0.09224175]
[1732452001032,0.023,96800.0,96762.0,0.0761]
[1732452001033,0.023,96799.0,96788.0,0.04129]
[1732452001290,0.206578,96816.0,96781.0,0.0010331]
[1732452001291,0.206599,96806.0,96793.0,0.002]
[1732452001511,0.103302,96803.0,96794.0,0.00103298]
[1732452001732,0.0771,96827.0,96799.0,0.002]
[1732452001953,0.0771,96827.0,96801.0,0.09224175]
[1732452001954,0.023,96826.0,96801.0,0.09224175]
[1732452002211,0.023,96826.0,96786.0,0.041286]
[1732452002212,0.023,96824.0,96786.0,0.041286]
[1732452002430,0.10201427,96825.0,96762.0,0.0761]
[1732452002431,0.206631,96791.0,96772.0,0.09224175]
[1732452002643,0.103324,96783.0,96773.0,0.00103317]
[1732452002883,0.103322,96785.0,96777.0,0.153]
[1732452003100,0.12501427,96811.0,96785.0,0.002]
[1732452003332,0.20663,96792.0,96778.0,0.1952892]
[1732452003590,0.10201427,96810.0,96778.0,0.1952892]
[1732452003591,0.023,96809.0,96778.0,0.1972892]
[1732452003812,0.023,96798.0,96781.0,0.002]
[1732452004024,0.023,96798.0,96778.0,0.1952892]
[1732452004025,0.103322,96785.0,96778.0,0.19425602]
[1732452004285,0.103317,96790.0,96778.0,0.19425602]
[1732452004509,0.103318,96788.0,96778.0,0.19425602]
[1732452004719,0.10332,96786.0,96778.0,0.19425602]
[1732452004969,0.103321,96786.0,96778.0,0.19425602]
[1732452005205,0.023,96807.0,96773.0,0.041293]
[1732452005451,0.206605,96803.0,96762.0,0.0761]
[1732452005669,0.309913,96801.0,96769.0,0.153]
[1732452005890,0.309913,96801.0,96762.0,0.0761]
[1732452005891,0.023,96800.0,96778.0,0.002]
[1732452006145,0.15,96804.0,96772.0,0.09224175]
[1732452006368,0.206607,96802.0,96767.0,0.041296]
[1732452006587,0.10775825,96798.0,96754.0,0.09224175]
[1732452006851,0.103344,96764.0,96755.0,0.10201427]
[1732452007097,0.047,96794.0,96759.0,0.13354175]
[1732452007360,0.403641,96786.0,96744.0,0.154714]
[1732452007591,0.206675,96770.0,96745.0,0.10201427]
[1732452007807,0.047,96778.0,96744.0,0.001714]
[1732452008034,0.0925,96775.0,96744.0,0.001714]
[1732452008259,0.103364,96745.0,96744.0,0.001714]
[1732452008708,0.12256153,96745.0,96744.0,0.001714]
[1732452008918,0.103364,96745.0,96744.0,0.021714]
[1732452009154,0.12256153,96745.0,96744.0,0.021714]
[1732452009442,0.15141563,96745.0,96744.0,0.021714]
[1732452009889,0.73930732,96774.0,96744.0,0.021714]
[1732452009890,0.24640157,96774.0,96744.0,0.021714]
[1732452010123,0.047,96781.0,96748.0,0.09224175]
[1732452010337,0.10201427,96780.0,96748.0,0.12201427]
[1732452010554,0.103347,96762.0,96748.0,0.02]
[1732452010794,0.0791269,96770.0,96748.0,0.02]
[1732452011014,0.18114117,96770.0,96748.0,0.02]
[1732452011319,0.10336,96749.0,96748.0,0.02]
[1732452012439,0.1813379,96749.0,96748.0,0.02]
[1732452012879,0.0782883,96766.0,96748.0,0.02]
[1732452013102,0.10201427,96765.0,96748.0,0.02]
[1732452013353,0.10336,96749.0,96748.0,0.02]
[1732452013576,0.10336,96749.0,96722.0,0.01]
[1732452013577,0.103382,96728.0,96722.0,0.01]
[1732452014792,0.20539627,96728.0,96722.0,0.01]
[1732452015012,0.28364124,96728.0,96722.0,0.01]
[1732452015447,0.18162697,96728.0,96722.0,0.01]
[1732452015676,0.07824497,96728.0,96722.0,0.01]
[1732452017947,0.023,96749.0,96722.0,0.01]
[1732452018199,0.1243,96763.0,96728.0,0.00103377]
[1732452018450,0.103355,96754.0,96728.0,0.00103377]
[1732452018663,0.07435353,96759.0,96731.0,0.24524175]
[1732452018880,0.103363,96747.0,96732.0,0.00103362]
[1732452019108,0.07435353,96759.0,96732.0,0.00103362]
[1732452019372,0.206703,96757.0,96737.0,0.002]
[1732452019611,0.206705,96756.0,96734.0,0.002]
[1732452019856,0.206705,96756.0,96731.0,0.24524175]
[1732452019857,0.07588041,96755.0,96737.0,0.002]
[1732452020084,0.07588041,96755.0,96742.0,0.153]
[1732452020317,0.07588041,96755.0,96744.0,0.09224175]
[1732452020579,0.16616473,96762.0,96761.0,0.002]
[1732452020831,0.10775825,96803.0,96765.0,0.002]
[1732452021111,0.103326,96781.0,96766.0,0.00103328]
[1732452021381,0.103326,96781.0,96760.0,0.2297]
[1732452021382,0.16616473,96793.0,96760.0,0.0767]
[1732452021632,0.16616473,96793.0,96742.0,0.002]
[1732452021633,0.14901427,96780.0,96742.0,0.153]
[1732452022084,0.14901427,96780.0,96738.0,0.09224175]
[1732452022085,0.10775825,96779.0,96738.0,0.09224175]
[1732452022308,0.047,96770.0,96727.0,0.0784124]
[1732452022533,0.10775825,96762.0,96727.0,0.0784124]
[1732452022766,0.206696,96760.0,96727.0,0.0784124]
[1732452022982,0.19977712,96759.0,96727.0,0.0017124]
[1732452023202,0.206752,96735.0,96727.0,0.0017124]
[1732452023417,1.57435772,96758.0,96727.0,0.1567124]
[1732452023651,1.57435772,96758.0,96727.0,0.0017124]
[1732452023652,0.206748,96737.0,96727.0,0.0017124]
[1732452023902,0.12501427,96757.0,96727.0,0.0017124]
[1732452023903,0.103376,96735.0,96727.0,0.0017124]
[1732452024162,0.12501427,96757.0,96727.0,0.0017124]
[1732452024389,0.103372,96738.0,96727.0,0.00274613]
[1732452024816,0.12501427,96757.0,96727.0,0.00274613]
[1732452025040,0.103364,96746.0,96733.0,0.002]
[1732452025309,0.103367,96743.0,96732.0,0.002]
[1732452025555,0.07439836,96747.0,96730.0,0.002]
[1732452025770,0.07439836,96747.0,96728.0,0.00103373]
[1732452025771,0.103364,96746.0,96733.0,0.002]
[1732452025982,0.20671,96754.0,96733.0,0.002]
[1732452026256,0.16616473,96770.0,96744.0,0.002]
[1732452026486,0.16616473,96770.0,96750.0,0.09424175]
[1732452026754,0.16616473,96770.0,96765.0,0.002]
[1732452026972,0.16616473,96770.0,96751.0,0.00103343]
[1732452026973,0.16616473,96770.0,96762.0,0.002]
[1732452027188,0.000857,96762.0,96761.0,0.002]
[1732452027441,0.000857,96762.0,96751.0,0.002]
[1732452027913,0.10335,96758.0,96751.0,0.002]
[1732452028131,0.103348,96760.0,96751.0,0.002]
[1732452028383,0.103348,96760.0,96746.0,0.153]
[1732452028384,0.207551,96762.0,96746.0,0.153]
[1732452028622,0.103362,96747.0,96746.0,0.153]
[1732452028880,0.10201427,96761.0,96736.0,0.00103362]
[1732452028881,0.103364,96746.0,96736.0,0.00103362]
[1732452029128,0.10201427,96761.0,96729.0,0.0833]
[1732452029129,0.103369,96740.0,96729.0,0.0833]
[1732452029400,0.10337,96740.0,96732.0,0.153]
[1732452029653,0.206699,96759.0,96733.0,0.00103365]
[1732452029870,0.206696,96760.0,96740.0,0.153]
[1732452030131,0.000857,96762.0,96746.0,0.08924175]
[1732452030325,0.000857,96762.0,96740.0,0.153]
[1732452030326,0.000857,96762.0,96751.0,0.08924175]
[1732452030557,0.000857,96762.0,96752.0,0.00103342]
[1732452030811,0.000857,96762.0,96751.0,0.08924175]
[1732452030812,0.000857,96762.0,96753.0,0.00103342]
[1732452031034,0.000857,96762.0,96751.0,0.08924175]
[1732452031250,0.000857,96762.0,96752.0,0.00103342]
[1732452031972,0.103353,96756.0,96747.0,0.10201427]
[1732452032248,0.000857,96762.0,96730.0,0.08924175]
[1732452032470,0.000857,96762.0,96724.0,0.0456]
[1732452032471,0.10201427,96758.0,96729.0,0.2363]
[1732452032694,0.103373,96738.0,96731.0,0.0010336]
[1732452032910,0.103374,96736.0,96729.0,0.0833]
[1732452033136,1.5,96757.0,96729.0,0.0833]
[1732452033356,0.103376,96734.0,96724.0,0.1986]
[1732452033587,0.206733,96743.0,96724.0,0.0456]
[1732452033818,0.12501427,96756.0,96722.0,0.01]
[1732452033819,0.103382,96728.0,96722.0,0.01]
[1732452034305,0.023,96753.0,96722.0,0.01]
[1732452034572,0.10201427,96752.0,96722.0,0.01]
[1732452034828,0.047,96759.0,96728.0,0.00103378]
[1732452035052,0.000857,96762.0,96728.0,0.00103372]
[1732452035053,0.13372494,96756.0,96728.0,0.00103372]
[1732452035277,0.13372494,96756.0,96727.0,0.29395415]
[1732452035278,0.206711,96754.0,96727.0,0.29395415]
[1732452035498,0.10201427,96756.0,96728.0,0.00103368]
[1732452035749,0.206696,96761.0,96733.0,0.153]
[1732452036012,0.206696,96761.0,96735.0,0.08924175]
[1732452036265,0.000857,96762.0,96741.0,0.17254175]
[1732452036476,0.000857,96762.0,96751.0,0.08924175]
[1732452036692,0.000857,96762.0,96747.0,0.153]
[1732452036937,0.000857,96762.0,96751.0,0.08924175]
[1732452037192,0.000857,96762.0,96752.0,0.00103343]
[1732452037416,0.000857,96762.0,96747.0,0.153]
[1732452037645,0.000857,96762.0,96751.0,0.08924175]
[1732452038129,0.104203,96762.0,96751.0,0.08924175]
[1732452038358,0.000857,96762.0,96751.0,0.08924175]
[1732452039043,0.206694,96761.0,96747.0,0.153]
[1732452039270,0.000857,96762.0,96747.0,0.153]
[1732452039752,0.000857,96762.0,96732.0,0.001715]
[1732452039753,0.023,96760.0,96732.0,0.001715]
[1732452039976,0.13379,96759.0,96732.0,0.001715]
[1732452040197,0.103377,96733.0,96732.0,0.001715]
[1732452040934,0.206749,96736.0,96732.0,0.001715]
[1732452041163,0.14315319,96759.0,96732.0,0.001715]
[1732452041386,0.103377,96733.0,96732.0,0.001715]
[1732452042807,0.206751,96735.0,96732.0,0.001715]
[1732452042808,0.103375,96735.0,96732.0,0.001715]
[1732452043028,0.023,96755.0,96732.0,0.001715]
[1732452043250,0.103374,96736.0,96732.0,0.001715]
[1732452043489,0.023,96753.0,96732.0,0.001715]
[1732452043490,0.10337,96740.0,96732.0,0.001715]
[1732452043709,0.023,96753.0,96732.0,0.001715]
[1732452043710,0.103363,96746.0,96732.0,0.001715]
[1732452043942,0.11075825,96772.0,96738.0,0.08924175]
[1732452043943,0.09100281,96772.0,96738.0,0.08924175]
[1732452044154,0.13380874,96761.0,96732.0,0.001715]
[1732452044406,0.103369,96741.0,96732.0,0.001715]
[1732452044620,0.10201427,96761.0,96732.0,0.001715]
[1732452044841,0.03179236,96760.0,96732.0,0.001715]
[1732452045070,0.10201427,96759.0,96732.0,0.001715]
[1732452045336,0.03179236,96758.0,96738.0,0.08924175]
[1732452045537,0.03179236,96758.0,96732.0,0.001715]
[1732452045538,0.16616473,96759.0,96742.0,0.08924175]
[1732452045751,0.16616473,96759.0,96743.0,0.00103353]
[1732452046173,0.16616473,96759.0,96741.0,0.153]
[1732452046174,0.26951373,96759.0,96749.0,0.08924175]
[1732452046387,0.16616473,96759.0,96751.0,0.08924175]
[1732452046606,0.16616473,96759.0,96751.0,0.09027522]
[1732452046863,0.26951473,96759.0,96751.0,0.09027522]
[1732452047076,0.16616473,96759.0,96758.0,0.08924175]
[1732452047291,0.16616473,96759.0,96758.0,0.43727102]
[1732452047556,0.16616473,96759.0,96758.0,0.56647102]
[1732452047557,0.103,96759.0,96758.0,0.56647102]
[1732452047757,0.206608,96802.0,96758.0,0.56647102]
[1732452047758,0.18200563,96799.0,96761.0,0.33525375]
[1732452047971,0.18200563,96799.0,96761.0,0.51996802]
[1732452048196,0.103299,96806.0,96782.0,0.153]
[1732452048403,0.16616473,96806.0,96791.0,0.08924175]
[1732452048633,0.16616473,96806.0,96782.0,0.153]
[1732452048856,0.103314,96792.0,96782.0,0.129665]
[1732452049065,0.16616473,96806.0,96791.0,0.08924175]
[1732452049066,0.103304,96802.0,96791.0,0.08924175]
[1732452049337,0.16616473,96806.0,96791.0,0.08924175]
[1732452049338,0.309904,96804.0,96791.0,0.08924175]
[1732452049552,0.16616473,96806.0,96791.0,0.08924175]
[1732452049553,0.16616473,96806.0,96792.0,0.00103301]
[1732452049812,0.16616473,96806.0,96805.0,0.09297]
[1732452050013,0.0008567,96809.0,96808.0,0.21890675]
[1732452050240,0.0008567,96809.0,96808.0,0.31187375]
[1732452050501,0.01075731,96822.0,96821.0,0.31186175]
[1732452050738,0.01075731,96822.0,96821.0,0.35836175]
[1732452050940,0.01075731,96822.0,96821.0,0.0465]
[1732452051149,0.01075731,96822.0,96805.0,0.0827]
[1732452051377,0.01075731,96822.0,96810.0,0.08924175]
[1732452051810,0.0008562,96836.0,96810.0,0.08924175]
[1732452052065,0.103282,96822.0,96811.0,0.00103281]
[1732452052277,0.0008562,96836.0,96811.0,0.00103281]
[1732452052538,0.0008562,96836.0,96806.0,0.10201427]
[1732452052539,0.0008562,96836.0,96826.0,0.129665]
[1732452052740,0.0008562,96836.0,96835.0,0.21890675]
[1732452053660,0.1041242,96836.0,96829.0,0.08924175]
[1732452053881,0.0008562,96836.0,96821.0,0.05]
[1732452054303,0.103282,96822.0,96821.0,0.05]
[1732452054513,0.10328,96824.0,96821.0,0.05]
[1732452054735,0.103282,96822.0,96821.0,0.05]
[1732452055618,1.5,96826.0,96821.0,0.05]
[1732452055876,0.0008562,96836.0,96821.0,0.13424175]
[1732452056132,0.0008562,96836.0,96828.0,0.21890675]
[1732452056417,0.0008562,96836.0,96830.0,0.08924175]
[1732452056631,0.103282,96822.0,96821.0,0.045]
[1732452057472,0.103273,96831.0,96821.0,0.045]
[1732452057692,0.0008562,96836.0,96821.0,0.045]
[1732452057901,0.103278,96826.0,96821.0,0.045]
[1732452058112,0.0008562,96836.0,96821.0,0.045]
[1732452058575,0.023,96834.0,96821.0,0.045]
[1732452058779,0.103279,96825.0,96821.0,0.045]
[1732452059000,0.206541,96833.0,96821.0,0.045]
[1732452059211,0.0008562,96836.0,96821.0,0.045]
[1732452059212,1.5,96824.0,96821.0,0.045]
[1732452059447,0.206543,96832.0,96821.0,0.045]
[1732452059743,0.0008562,96836.0,96821.0,0.045]
[1732452059949,0.0008562,96836.0,96824.0,0.08924175]
[1732452060382,0.0008562,96836.0,96821.0,0.14701427]
[1732452060383,0.103282,96822.0,96821.0,0.045]
[1732452061344,1.5,96824.0,96821.0,0.045]
[1732452061583,0.103273,96831.0,96821.0,0.045]
[1732452061789,0.0008562,96836.0,96825.0,0.08924175]
[1732452062003,0.0008562,96836.0,96827.0,0.08924175]
[1732452062662,0.0008562,96836.0,96829.0,0.08924175]
[1732452062907,0.0008562,96836.0,96834.0,0.08924175]
[1732452063122,0.0008562,96836.0,96821.0,0.045]
[1732452063123,0.206555,96827.0,96823.0,0.083]
[1732452063331,0.103282,96822.0,96821.0,0.045]
[1732452063541,0.1041395,96822.0,96821.0,0.045]
[1732452064269,0.10517209,96822.0,96821.0,0.045]
[1732452064470,0.12817209,96822.0,96821.0,0.045]
[1732452064747,0.22915377,96822.0,96821.0,0.045]
[1732452064962,0.1271395,96822.0,96821.0,0.045]
[1732452065193,0.10517209,96822.0,96821.0,0.045]
[1732452065406,0.206625,96794.0,96788.0,0.08924175]
[1732452065620,0.023,96818.0,96784.0,0.206565]
[1732452065861,0.103317,96790.0,96786.0,0.129665]
[1732452066135,0.10304686,96817.0,96786.0,0.129665]
[1732452066136,0.023,96816.0,96786.0,0.129665]
[1732452066342,0.206575,96817.0,96796.0,0.129665]
[1732452066557,0.206599,96806.0,96792.0,0.00103299]
[1732452066768,0.10201427,96806.0,96784.0,0.0769]
[1732452066978,0.206607,96802.0,96788.0,0.129665]
[1732452067195,0.103321,96785.0,96777.0,0.0464]
[1732452067452,0.00103259,96801.0,96774.0,0.08924175]
[1732452067650,0.00103259,96801.0,96771.0,0.0769]
[1732452067651,0.023,96799.0,96771.0,0.0769]
[1732452067894,0.023,96799.0,96736.0,0.2]
[1732452067895,0.103348,96760.0,96759.0,0.0769]
[1732452068193,0.103348,96760.0,96759.0,0.0756933]
[1732452068398,0.023,96792.0,96750.0,0.129665]
[1732452068612,0.023,96789.0,96747.0,0.176065]
[1732452068894,0.023,96789.0,96715.0,0.2017124]
[1732452068895,0.10337,96739.0,96738.0,0.08924175]
[1732452069084,0.103377,96733.0,96727.0,0.0017124]
[1732452069571,0.103377,96733.0,96727.0,0.1313774]
[1732452070046,0.103377,96733.0,96727.0,0.0017124]
[1732452070719,0.103377,96733.0,96732.0,0.00052541]
[1732452070922,0.10440959,96733.0,96732.0,0.00052541]
[1732452071581,0.11075825,96756.0,96732.0,0.00052541]
[1732452071582,1.5,96765.0,96732.0,0.00052541]
[1732452071783,0.206721,96749.0,96732.0,0.00052541]
[1732452072072,0.00103259,96758.0,96740.0,0.129665]
[1732452072274,0.206692,96762.0,96740.0,0.129665]
[1732452072275,1.5,96762.0,96740.0,0.32092102]
[1732452072485,0.00752754,96775.0,96749.0,0.08924175]
[1732452072741,0.00103259,96774.0,96749.0,0.09027523]
[1732452072950,0.00103259,96774.0,96753.0,0.21890675]
[1732452073159,0.00103259,96774.0,96757.0,0.08924175]
[1732452073594,0.26949473,96778.0,96763.0,0.129665]
[1732452073815,0.103332,96775.0,96768.0,0.129665]
[1732452074016,0.26949373,96778.0,96768.0,0.129665]
[1732452074227,0.16616473,96778.0,96772.0,0.129665]
[1732452074478,0.20666,96777.0,96772.0,0.129665]
[1732452074687,0.103338,96769.0,96768.0,0.129665]
[1732452074909,0.103337,96771.0,96769.0,0.15]
[1732452075118,0.023,96776.0,96752.0,0.129665]
[1732452075335,0.103349,96759.0,96758.0,0.15]
[1732452076453,0.103359,96750.0,96749.0,0.0017132]
[1732452076682,0.103359,96750.0,96749.0,0.2813782]
[1732452076930,0.206699,96759.0,96751.0,0.129665]
[1732452077191,0.103346,96763.0,96755.0,0.129665]
[1732452077425,0.206664,96776.0,96756.0,0.21890675]
[1732452077637,0.15,96803.0,96756.0,0.129665]
[1732452077638,0.103351,96757.0,96756.0,0.129665]
[1732452077867,0.103351,96758.0,96756.0,0.129665]
[1732452078068,0.206696,96760.0,96756.0,0.129665]
[1732452078285,0.19417772,96803.0,96761.0,0.21890675]
[1732452078286,0.00103259,96777.0,96761.0,0.21890675]
[1732452078547,0.00103259,96777.0,96752.0,0.15]
[1732452078548,0.206656,96780.0,96777.0,0.129665]
[1732452078804,0.26949373,96778.0,96777.0,0.129665]
[1732452079020,0.26949373,96778.0,96768.0,0.129665]
[1732452079229,0.00103259,96777.0,96752.0,0.129665]
[1732452079442,0.10304686,96777.0,96757.0,0.129665]
[1732452079653,0.023,96776.0,96750.0,0.129665]
[1732452079863,0.103358,96751.0,96750.0,0.129665]
[1732452080501,0.206693,96762.0,96750.0,0.129665]
[1732452080762,0.051673,96843.0,96732.0,0.00052541]
[1732452080763,0.00103259,96761.0,96745.0,0.129665]
[1732452080983,0.206676,96770.0,96756.0,0.129665]
[1732452081196,0.00103259,96769.0,96752.0,0.08924175]
[1732452081438,0.00103259,96773.0,96756.0,0.129665]
[1732452081660,0.00103259,96772.0,96757.0,0.15]
[1732452081913,0.10335,96758.0,96757.0,0.279665]
[1732452082131,0.00103259,96768.0,96757.0,0.279665]
[1732452082604,0.16616473,96778.0,96764.0,0.08924175]
[1732452082606,0.16616473,96778.0,96768.0,0.15]
[1732452082884,0.16616473,96778.0,96771.0,0.23924175]
[1732452083523,0.16616473,96778.0,96771.0,0.08924175]
[1732452083773,0.16616473,96778.0,96771.0,0.23924175]
[1732452084696,0.16616473,96778.0,96777.0,0.36890675]
[1732452085578,0.16616473,96778.0,96777.0,0.279665]
[1732452085796,0.26949373,96778.0,96777.0,0.279665]
[1732452086250,0.103343,96765.0,96764.0,0.279665]
[1732452086502,0.103343,96765.0,96764.0,0.15]
[1732452086746,0.103351,96758.0,96753.0,0.129665]
[1732452086994,0.00103259,96763.0,96753.0,0.129665]
[1732452087229,0.10335,96758.0,96753.0,0.129665]
[1732452087452,0.00103259,96763.0,96753.0,0.129665]
[1732452087453,0.206692,96762.0,96753.0,0.129665]
[1732452087675,0.103354,96754.0,96753.0,0.129665]
[1732452087888,0.20772659,96761.0,96753.0,0.129665]
[1732452087889,0.206694,96761.0,96753.0,0.129665]
[1732452088134,0.103353,96755.0,96754.0,0.15]
[1732452088571,0.023,96770.0,96754.0,0.15]
[1732452088828,0.00103259,96769.0,96754.0,0.15]
[1732452089299,0.206693,96762.0,96754.0,0.15]
[1732452089758,1.50103259,96769.0,96750.0,0.15]
[1732452089999,1.50103259,96769.0,96755.0,0.08924175]
[1732452090255,1.50103259,96769.0,96754.0,0.15]
[1732452090256,0.103353,96755.0,96754.0,0.15]
[1732452090508,0.103359,96750.0,96749.0,0.0017132]
[1732452090753,0.206703,96757.0,96749.0,0.0017132]
[1732452090754,0.206711,96753.0,96749.0,0.0017132]
[1732452090961,0.103359,96750.0,96749.0,0.0017132]
[1732452091186,0.12739159,96750.0,96749.0,0.0017132]
[1732452093256,0.22940586,96750.0,96749.0,0.0017132]
[1732452093493,0.22837327,96750.0,96749.0,0.0017132]
[1732452093713,0.26140102,96750.0,96749.0,0.0017132]
[1732452094373,1.76140102,96750.0,96749.0,0.0017132]
[1732452095004,1.72837327,96750.0,96749.0,0.00130578]
[1732452095482,0.103377,96733.0,96732.0,0.00052541]
[1732452095738,0.12740959,96733.0,96732.0,0.00052541]
[1732452096172,0.22942386,96733.0,96732.0,0.00052541]
[1732452096417,0.22839127,96733.0,96732.0,0.00052541]
[1732452096650,0.26194549,96733.0,96732.0,0.00052541]
[1732452097789,1.76194549,96733.0,96732.0,0.00052541]
[1732452098041,1.53355422,96733.0,96732.0,0.00052541]
[1732452098257,0.103377,96733.0,96732.0,0.00052541]
[1732452098507,0.20539127,96733.0,96732.0,0.00052541]
[1732452098750,0.23997808,96733.0,96732.0,0.00052541]
[1732452098981,0.23894549,96733.0,96732.0,0.00052541]
[1732452099213,0.20539127,96733.0,96732.0,0.00052541]
[1732452099431,1.70642386,96733.0,96732.0,0.00052541]
[1732452099660,1.76194549,96733.0,96732.0,0.00052541]
[1732452100360,1.76194549,96733.0,96715.0,0.0017124]
[1732452100361,0.11075825,96731.0,96715.0,0.0017124]
[1732452100602,1.85105274,96733.0,96715.0,0.0017124]
[1732452100603,0.126388,96723.0,96715.0,0.0017124]
[1732452100820,0.22943486,96723.0,96715.0,0.0017124]
[1732452101045,1.72840227,96723.0,96715.0,0.0017124]
[1732452103341,0.103388,96723.0,96715.0,0.0017124]
[1732452103688,0.10442059,96723.0,96715.0,0.0017124]
[1732452104647,0.20643486,96723.0,96715.0,0.0017124]
[1732452104922,0.31664718,96723.0,96715.0,0.0017124]
[1732452105128,0.31561459,96723.0,96715.0,0.0017124]
[1732452105337,1.81561459,96723.0,96715.0,0.0017124]
[1732452106053,1.85701128,96723.0,96715.0,0.0017124]
[1732452109130,0.35701128,96723.0,96715.0,0.0017124]
[1732452109363,0.33401128,96723.0,96715.0,0.0017124]
[1732452109580,0.19060032,96723.0,96715.0,0.0017124]
[1732452109838,0.19163291,96723.0,96715.0,0.0017124]
[1732452110295,0.103396,96715.0,96714.0,0.0413774]
[1732452110514,0.103392,96719.0,96718.0,0.0413774]
[1732452110993,0.08721232,96723.0,96719.0,0.0413774]
[1732452110994,0.29398932,96723.0,96719.0,0.0413774]
[1732452111327,0.29398932,96723.0,96722.0,0.0413774]
[1732452111328,0.08721232,96723.0,96722.0,0.0413774]
[1732452111418,0.08721232,96723.0,96718.0,0.0413774]
[1732452111636,0.42037732,96723.0,96722.0,0.0430922]
[1732452112580,0.42037732,96723.0,96722.0,0.0017148]
[1732452112581,0.52239159,96723.0,96722.0,0.0017148]
[1732452113305,2.02239159,96723.0,96722.0,0.0017148]
[1732452113538,2.02188655,96723.0,96722.0,0.0017148]
[1732452114216,1.91987228,96723.0,96722.0,0.0017148]
[1732452114448,0.41987228,96723.0,96722.0,0.0017148]
[1732452114661,0.52188655,96723.0,96722.0,0.0017148]
[1732452114901,2.02188655,96723.0,96722.0,0.0017148]
[1732452115133,1.91987228,96723.0,96722.0,0.0017148]
[1732452115393,0.41987228,96723.0,96722.0,0.0017148]
[1732452115603,0.21309528,96723.0,96722.0,0.0017148]
[1732452117377,0.31614214,96723.0,96722.0,0.0017148]
[1732452117608,0.31510955,96723.0,96722.0,0.0017148]
[1732452118775,0.31510955,96723.0,96706.0,0.0008568]
[1732452118776,0.126405,96707.0,96706.0,0.0008568]
[1732452119026,0.22945186,96707.0,96706.0,0.0008568]
[1732452119261,1.72841927,96707.0,96706.0,0.0008568]
[1732452120631,1.814194,96707.0,96706.0,0.0008568]
[1732452121344,0.126406,96706.0,96705.0,0.00067016]
[1732452121576,0.26116004,96706.0,96705.0,0.00067016]
[1732452121808,0.26012745,96706.0,96705.0,0.00067016]
[1732452122026,0.3138044,96706.0,96705.0,0.00067016]
[1732452123028,0.3138044,96706.0,96705.0,1.6e-07]
[1732452123029,0.34551591,96706.0,96705.0,1.6e-07]
[1732452123253,1.88015158,96706.0,96705.0,1.6e-07]
[1732452123468,1.87815158,96706.0,96705.0,1.6e-07]
[1732452123717,1.98890983,96706.0,96705.0,1.6e-07]
[1732452123963,1.98890983,96706.0,96703.0,0.0008571]
[1732452123964,0.23716625,96704.0,96703.0,0.00053258]
[1732452124175,0.126409,96703.0,96702.0,7.8e-07]
[1732452124420,0.37788924,96703.0,96702.0,7.8e-07]
[1732452124670,0.4896149,96703.0,96702.0,7.8e-07]
[1732452124920,0.4876149,96703.0,96702.0,7.8e-07]
[1732452125369,0.4896149,96703.0,96702.0,7.8e-07]
[1732452125633,0.4876149,96703.0,96702.0,7.8e-07]
[1732452126720,0.21416925,96701.0,96700.0,1.9831043]
[1732452126967,0.48975244,96701.0,96700.0,1.9624213]
[1732452127184,0.49071985,96701.0,96700.0,1.9624213]
[1732452127394,1.98871985,96701.0,96700.0,1.9624213]
[1732452127607,1.98871985,96701.0,96683.0,0.0008578]
[1732452127608,0.13375825,96684.0,96683.0,6.2e-07]
[1732452127823,0.31380251,96684.0,96683.0,6.2e-07]
[1732452128059,0.34563724,96684.0,96683.0,6.2e-07]
[1732452128346,1.95639549,96684.0,96683.0,6.2e-07]
[1732452128571,0.23718925,96682.0,96681.0,2e-08]